fUST/lending_fUST_20260218
["ID","MTS","AMOUNT","RATE_DAILY","PERIOD"]
[405893536,1771402239179,-500.0,0.00013699,2]
[405893537,1771402239189,-503.99085965,0.00013699,2]
[405893538,1771402239198,-500.0,0.00013699,2]
[405893539,1771402239208,-500.0,0.00013699,2]
[405893540,1771402239217,-435.68813452,0.00013699,2]
[405893541,1771402239227,-500.0,0.00013709,2]
[405893542,1771402239236,-500.0,0.00013753,2]
[405893543,1771402239246,-500.0,0.00013808,2]
[405893544,1771402239255,-851.66,0.0001382,2]
[405893545,1771402239264,-1000.0,0.00013821,2]
[405893546,1771402239274,-1000.0,0.00013821,2]
[405893547,1771402239283,-1000.0,0.00013821,2]
[405893548,1771402239292,-500.0,0.00013824,2]
[405893549,1771402239301,-500.0,0.00013841,2]
[405893550,1771402239310,-500.0,0.00013863,2]
[405893551,1771402239320,-500.0,0.00013903,2]
[405893552,1771402239330,-500.0,0.00013918,2]
[405893553,1771402239340,-500.0,0.00013925,2]
[405893554,1771402239349,-168.96452558,0.00013973,2]
[405893555,1771402239358,-500.0,0.00014207,2]
[405893556,1771402239367,-500.0,0.00014207,2]
[405893557,1771402239377,-1032.13746,0.00014208,2]
[405893558,1771402239386,-600.0,0.00014221,2]
[405893559,1771402239395,-1000.0,0.00014247,2]
[405893560,1771402239405,-680.88266684,0.00014247,2]
[405893561,1771402239415,-500.0,0.00014256,2]
[405893562,1771402239425,-1500.0,0.00014368,2]
[405893563,1771402239434,-1500.0,0.00014368,2]
[405893564,1771402239443,-1500.0,0.00014368,2]
[405893565,1771402239453,-2173.0,0.00014476,2]
[405893566,1771402239463,-725.0,0.00014476,2]
[405893567,1771402239472,-193.076,0.00014476,2]
[405893568,1771402239482,-426.0,0.00014476,2]
[405893569,1771402239491,-469.74238717,0.00014505,2]
[405893570,1771402239500,-338.64695072,0.00014505,2]
[405893571,1771402239510,-500.0,0.00014588,2]
[405893572,1771402239519,-524.73,0.00014588,2]
[405893573,1771402239528,-500.0,0.00014701,2]
[405893574,1771402239538,-900.0,0.00014768,2]
[405893575,1771402239547,-1032.13746,0.00014782,2]
[405893576,1771402239557,-1107.47987705,0.00014795,2]
[405893577,1771402239566,-2000.0,0.00014916,2]
[405893578,1771402239575,-700.91287985,0.00014916,2]
[405893579,1771402239585,-2000.0,0.00014916,2]
[405893580,1771402239595,-500.0,0.00014917,2]
[405893581,1771402239605,-1000.0,0.00014932,2]
[405893582,1771402239615,-244.0,0.00014932,2]
[405893583,1771402239624,-500.0,0.00014955,2]
[405893584,1771402239635,-1500.0,0.00015,2]
[405893585,1771402239645,-500.0,0.00015006,2]
[405893586,1771402239654,-500.0,0.00015047,2]
[405893587,1771402239663,-500.0,0.00015055,2]
[405893588,1771402239673,-162.68,0.000151,2]
[405893589,1771402239685,-784.0,0.000152,2]
[405893590,1771402239695,-1032.13746,0.00015355,2]
[405893591,1771402239705,-500.0,0.00015378,2]
[405893592,1771402239715,-613.49372077,0.00015464,2]
[405893593,1771402239725,-2500.0,0.00015464,2]
[405893594,1771402239735,-2500.0,0.00015464,2]
[405893595,1771402239745,-500.0,0.00015485,2]
[405893596,1771402239759,-258.0,0.00015509,2]
[405893597,1771402239770,-164.8,0.0001555,2]
[405893598,1771402239780,-500.0,0.00015553,2]
[405893599,1771402239789,-500.0,0.00015698,2]
[405893600,1771402239799,-500.0,0.00015791,2]
[405893601,1771402239810,-159.94089833,0.00015818,2]
[405893602,1771402239819,-1032.13746,0.00015929,2]
[405893603,1771402239830,-715.73,0.00015929,2]
[405893604,1771402239839,-715.73,0.00015929,2]
[405893605,1771402239850,-715.73,0.00015929,2]
[405893606,1771402239859,-715.73,0.00015929,2]
[405893607,1771402239869,-715.73,0.00015929,2]
[405893608,1771402239878,-715.73,0.00015929,2]
[405893609,1771402239892,-715.73,0.00015929,2]
[405893610,1771402239904,-715.73,0.00015929,2]
[405893611,1771402239913,-715.73,0.00015929,2]
[405893612,1771402239924,-715.73,0.00015929,2]
[405893613,1771402239935,-715.73,0.00015929,2]
[405893614,1771402239945,-734.85,0.00015929,2]
[405893615,1771402239958,-3000.0,0.00016012,2]
[405893616,1771402239969,-1046.48398893,0.00016012,2]
[405893617,1771402239980,-500.0,0.00016077,2]
[405893618,1771402239990,-525.29879594,0.00016142,2]
[405893619,1771402239999,-281.0,0.000162,2]
[405893620,1771402240007,-789.06,0.00016247,3]
[405893621,1771402240017,-383.90574964,0.00016257,2]
[405893622,1771402240026,-173.65176953,0.00016294,7]
[405893623,1771402240035,-523.80229486,0.00016306,2]
[405893624,1771402240044,-239.03,0.00016416,3]
[405893625,1771402240053,-717.14,0.00016418,3]
[405893626,1771402240062,-560.72,0.00016418,3]
[405893627,1771402240071,-1000.0,0.00016426,2]
[405893628,1771402240079,-492.0,0.00016426,2]
[405893629,1771402240088,-478.07,0.00016428,3]
[405893630,1771402240100,-1026.32691791,0.0001643,2]
[405893632,1771402240120,-500.0,0.00016436,2]
[405893633,1771402240143,-500.0,0.00016438,2]
[405893634,1771402240152,-726.33,0.00016438,2]
[405893635,1771402240161,-500.0,0.00016438,2]
[405893636,1771402240170,-500.0,0.00016438,2]
[405893637,1771402240179,-1764.9,0.00016438,2]
[405893638,1771402240188,-500.0,0.00016438,2]
[405893639,1771402240197,-201.61428603,0.00016438,2]
[405893640,1771402240206,-538.14,0.00016438,2]
[405893641,1771402240214,-1000.0,0.00016438,2]
[405893642,1771402240223,-193.77857985,0.00016438,2]
[405893643,1771402240232,-500.0,0.00016438,2]
[405893644,1771402240241,-500.0,0.00016438,2]
[405893645,1771402240251,-1549.77,0.00016438,2]
[405893646,1771402240259,-500.0,0.00016438,2]
[405893647,1771402240268,-500.0,0.00016438,2]
[405893648,1771402240278,-571.12,0.00016438,2]
[405893649,1771402240287,-1320.96,0.00016438,2]
[405893650,1771402240296,-500.0,0.00016438,2]
[405893651,1771402240305,-1000.0,0.00016438,2]
[405893652,1771402240314,-160.98587165,0.00016438,2]
[405893653,1771402240324,-848.46,0.00016438,2]
[405893654,1771402240333,-303.69682518,0.00016438,2]
[405893655,1771402240342,-3265.42,0.00016438,2]
[405893656,1771402240351,-500.0,0.00016438,2]
[405893657,1771402240360,-360.93717426,0.00016438,2]
[405893658,1771402240369,-500.0,0.00016438,2]
[405893659,1771402240378,-425.40894686,0.00016438,2]
[405893660,1771402240387,-1269.91,0.00016438,2]
[405893661,1771402240396,-500.0,0.00016438,2]
[405893662,1771402240405,-500.0,0.00016438,2]
[405893663,1771402240414,-500.0,0.00016438,2]
[405893664,1771402240422,-500.0,0.00016438,2]
[405893665,1771402240431,-1097.86,0.00016438,2]
[405893666,1771402240440,-1766.05,0.00016438,2]
[405893667,1771402240449,-500.0,0.00016438,2]
[405893668,1771402240457,-549.73,0.00016438,2]
[405893669,1771402240469,-170.61227144,0.00016438,2]
[405893670,1771402240478,-500.0,0.00016438,2]
[405893671,1771402240487,-500.0,0.00016438,2]
[405893672,1771402240496,-10313.6,0.00016438,2]
[405893673,1771402240505,-613.46,0.00016438,2]
[405893674,1771402240514,-500.0,0.00016452,2]
[405893675,1771402240523,-1032.13746,0.00016503,2]
[405893676,1771402240532,-3500.0,0.0001656,2]
[405893677,1771402240541,-293.85068442,0.00016607,2]
[405893678,1771402240550,-1000.0,0.00016677,5]
[405893679,1771402240560,-500.0,0.00016712,2]
[405893680,1771402240569,-726.33,0.00016712,2]
[405893681,1771402240578,-500.0,0.00016712,2]
[405893682,1771402240587,-500.0,0.00016712,2]
[405893683,1771402240596,-1764.9,0.00016712,2]
[405893684,1771402240605,-500.0,0.00016712,2]
[405893685,1771402240613,-538.14,0.00016712,2]
[405893686,1771402240623,-1000.0,0.00016712,2]
[405893687,1771402240632,-500.0,0.00016712,2]
[405893688,1771402240641,-500.0,0.00016712,2]
[405893689,1771402240650,-1549.77,0.00016712,2]
[405893691,1771402240659,-500.0,0.00016712,2]
[405893693,1771402240668,-500.0,0.00016712,2]
[405893694,1771402240677,-571.12,0.00016712,2]
[405893696,1771402240687,-1320.96,0.00016712,2]
[405893698,1771402240696,-500.0,0.00016712,2]
[405893699,1771402240707,-1000.0,0.00016712,2]
[405893700,1771402240716,-848.46,0.00016712,2]
[405893701,1771402240726,-3265.42,0.00016712,2]
[405893702,1771402240736,-500.0,0.00016712,2]
[405893703,1771402240745,-505.20928041,0.00016712,2]
[405893704,1771402240753,-1269.91,0.00016712,2]
[405893705,1771402240763,-500.0,0.00016712,2]
[405893707,1771402240772,-427.21990874,0.00016712,2]
[405893708,1771402240781,-500.0,0.00016712,2]
[405893709,1771402240790,-500.0,0.00016712,2]
[405893710,1771402240800,-1097.86,0.00016712,2]
[405893711,1771402240809,-1766.05,0.00016712,2]
[405893712,1771402240818,-500.0,0.00016712,2]
[405893713,1771402240827,-549.73,0.00016712,2]
[405893714,1771402240837,-188.26929664,0.00016712,2]
[405893715,1771402240847,-500.0,0.00016712,2]
[405893716,1771402240856,-10313.6,0.00016712,2]
[405893717,1771402240968,-613.46,0.00016712,2]
[405893718,1771402240982,-500.0,0.00016737,2]
[405893719,1771402240992,-500.0,0.00016776,2]
[405893720,1771402241001,-179.83814567,0.00016837,2]
[405893721,1771402241011,-250.0,0.00016922,2]
[405893722,1771402241020,-750.0,0.00016922,2]
[405893723,1771402241029,-250.0,0.00016922,2]
[405893724,1771402241038,-250.0,0.00016922,2]
[405893725,1771402241048,-750.0,0.00016922,2]
[405893726,1771402241057,-250.0,0.00016922,2]
[405893727,1771402241066,-250.0,0.00016922,2]
[405893728,1771402241075,-250.0,0.00016922,2]
[405893729,1771402241084,-750.0,0.00016922,2]
[405893730,1771402241093,-250.0,0.00016922,2]
[405893731,1771402241102,-250.0,0.00016922,2]
[405893732,1771402241111,-378.83486372,0.00016922,2]
[405893733,1771402241120,-750.0,0.00016922,2]
[405893734,1771402241129,-250.0,0.00016922,2]
[405893735,1771402241138,-750.0,0.00016922,2]
[405893736,1771402241147,-250.0,0.00016922,2]
[405893737,1771402241157,-250.0,0.00016922,2]
[405893738,1771402241167,-750.0,0.00016922,2]
[405893739,1771402241176,-250.0,0.00016922,2]
[405893740,1771402241185,-266.91873962,0.00016922,2]
[405893741,1771402241194,-168.3888056,0.00016922,2]
[405893742,1771402241203,-750.0,0.00016922,2]
[405893743,1771402241212,-250.0,0.00016922,2]
[405893744,1771402241221,-174.61919141,0.00016922,2]
[405893745,1771402241230,-750.0,0.00016922,2]
[405893746,1771402241240,-250.0,0.00016922,2]
[405893747,1771402241249,-181.08010149,0.00016922,2]
[405893748,1771402241258,-750.0,0.00016922,2]
[405893749,1771402241268,-270.62331005,0.00016922,2]
[405893750,1771402241277,-187.78006525,0.00016922,2]
[405893751,1771402241287,-750.0,0.00016922,2]
[405893752,1771402241296,-194.72792766,0.00016922,2]
[405893753,1771402241305,-750.0,0.00016922,2]
[405893754,1771402241315,-201.93286099,0.00016922,2]
[405893755,1771402241324,-750.0,0.00016922,2]
[405893756,1771402241333,-500.0,0.00016922,2]
[405893757,1771402241342,-209.40437684,0.00016922,2]
[405893758,1771402241352,-750.0,0.00016922,2]
[405893759,1771402241361,-500.0,0.00016922,2]
[405893760,1771402241371,-217.15233878,0.00016922,2]
[405893761,1771402241380,-750.0,0.00016922,2]
[405893762,1771402241389,-500.0,0.00016922,2]
[405893763,1771402241398,-225.18697532,0.00016922,2]
[405893764,1771402241407,-250.0,0.00016922,2]
[405893765,1771402241416,-750.0,0.00016922,2]
[405893766,1771402241425,-500.0,0.00016922,2]
[405893767,1771402241434,-250.0,0.00016922,2]
[405893768,1771402241443,-750.0,0.00016922,2]
[405893769,1771402241452,-233.51889341,0.00016922,2]
[405893770,1771402241462,-500.0,0.00016922,2]
[405893771,1771402241471,-250.0,0.00016922,2]
[405893772,1771402241480,-750.0,0.00016922,2]
[405893773,1771402241489,-242.15909246,0.00016922,2]
[405893774,1771402241498,-500.0,0.00016922,2]
[405893775,1771402241507,-250.0,0.00016922,2]
[405893776,1771402241516,-251.11897888,0.00016922,2]
[405893777,1771402241525,-500.0,0.00016922,2]
[405893778,1771402241534,-250.0,0.00016922,2]
[405893779,1771402241544,-293.5062531,0.00016922,2]
[405893780,1771402241552,-500.0,0.00016922,2]
[405893781,1771402241561,-500.0,0.00016922,2]
[405893782,1771402241571,-250.0,0.00016922,2]
[405893783,1771402241580,-273.28855637,0.00016922,2]
[405893784,1771402241589,-500.0,0.00016922,2]
[405893785,1771402241599,-500.0,0.00016922,2]
[405893786,1771402241608,-630.48995148,0.00016945,2]
[405893787,1771402241617,-500.0,0.00016959,2]
[405893788,1771402241627,-691.03034935,0.00016961,2]
[405893789,1771402241637,-500.0,0.00016986,2]
[405893790,1771402241647,-726.33,0.00016986,2]
[405893791,1771402241658,-500.0,0.00016986,2]
[405893792,1771402241667,-500.0,0.00016986,2]
[405893793,1771402241677,-1764.9,0.00016986,2]
[405893794,1771402241686,-500.0,0.00016986,2]
[405893795,1771402241696,-538.14,0.00016986,2]
[405893796,1771402241706,-500.0,0.00016986,2]
[405893797,1771402241715,-500.0,0.00016986,2]
[405893798,1771402241724,-1549.77,0.00016986,2]
[405893799,1771402241734,-500.0,0.00016986,2]
[405893800,1771402241743,-500.0,0.00016986,2]
[405893801,1771402241752,-571.12,0.00016986,2]
[405893802,1771402241762,-1320.96,0.00016986,2]
[405893803,1771402241771,-500.0,0.00016986,2]
[405893804,1771402241780,-848.46,0.00016986,2]
[405893805,1771402241790,-3265.42,0.00016986,2]
[405893806,1771402241799,-500.0,0.00016986,2]
[405893807,1771402241808,-1269.91,0.00016986,2]
[405893808,1771402241819,-500.0,0.00016986,2]
[405893809,1771402241828,-500.0,0.00016986,2]
[405893810,1771402241838,-353.62511049,0.00016986,2]
[405893811,1771402241848,-1097.86,0.00016986,2]
[405893812,1771402241857,-1766.05,0.00016986,2]
[405893813,1771402241867,-500.0,0.00016986,2]
[405893814,1771402241876,-549.73,0.00016986,2]
[405893815,1771402241887,-500.0,0.00016986,2]
[405893816,1771402241897,-10313.6,0.00016986,2]
[405893817,1771402241906,-613.46,0.00016986,2]
[405893818,1771402241915,-93064.46546838,0.0001699,2]
[405893819,1771402241926,-373.8824408,0.00017,2]
[405893820,1771402241936,-500.0,0.00017,7]
[405893821,1771402241945,-500.0,0.00017,7]
[405893822,1771402241954,-500.0,0.00017,7]
[405893823,1771402241964,-500.0,0.00017,7]
[405893824,1771402241974,-500.0,0.00017,7]
[405893825,1771402241983,-500.0,0.00017,7]
[405893826,1771402241992,-500.0,0.00017,7]
[405893827,1771402242001,-500.0,0.00017,7]
[405893828,1771402242010,-500.0,0.00017,7]
[405893829,1771402242019,-500.0,0.00017,7]
[405893830,1771402242036,-500.0,0.00017,7]
[405893831,1771402242047,-500.0,0.00017,7]
[405893832,1771402242057,-500.0,0.00017,7]
[405893833,1771402242068,-500.0,0.00017,7]
[405893834,1771402242078,-500.0,0.00017,7]
[405893835,1771402242087,-500.0,0.00017,7]
[405893836,1771402242098,-500.0,0.00017,7]
[405893837,1771402242110,-500.0,0.00017,7]
[405893838,1771402242121,-500.0,0.00017,7]
[405893839,1771402242131,-500.0,0.00017,7]
[405893840,1771402242141,-500.0,0.00017,7]
[405893841,1771402242152,-500.0,0.00017,7]
[405893842,1771402242163,-500.0,0.00017,7]
[405893843,1771402242173,-500.0,0.00017,7]
[405893844,1771402242183,-609.11,0.00017,7]
[405893845,1771402242193,-500.0,0.00017,7]
[405893846,1771402242203,-500.0,0.00017,7]
[405893847,1771402242213,-500.0,0.00017,7]
[405893848,1771402242223,-500.0,0.00017,7]
[405893849,1771402242231,-500.0,0.00017,7]
[405893850,1771402242242,-500.0,0.00017,7]
[405893851,1771402242254,-500.0,0.00017,7]
[405893852,1771402242263,-500.0,0.00017,7]
[405893853,1771402242272,-500.0,0.00017,7]
[405893854,1771402242282,-500.0,0.00017,7]
[405893855,1771402242293,-500.0,0.00017,7]
[405893856,1771402242304,-500.0,0.00017,7]
[405893857,1771402242315,-500.0,0.00017,7]
[405893858,1771402242326,-500.0,0.00017,7]
[405893859,1771402242335,-500.0,0.00017,7]
[405893860,1771402242346,-500.0,0.00017,7]
[405893861,1771402242355,-500.0,0.00017,7]
[405893862,1771402242365,-500.0,0.00017,7]
[405893863,1771402242376,-500.0,0.00017,7]
[405893864,1771402242387,-500.0,0.00017,7]
[405893865,1771402242397,-500.0,0.00017,7]
[405893866,1771402242406,-500.0,0.00017,7]
[405893867,1771402242415,-500.0,0.00017,7]
[405893868,1771402242424,-500.0,0.00017,7]
[405893869,1771402242433,-500.0,0.00017,7]
[405893870,1771402242442,-500.0,0.00017,7]
[405893871,1771402242451,-500.0,0.00017,7]
[405893872,1771402242460,-500.0,0.00017,7]
[405893873,1771402242470,-500.0,0.00017,7]
[405893874,1771402242479,-500.0,0.00017,7]
[405893875,1771402242488,-500.0,0.00017,7]
[405893876,1771402242497,-500.0,0.00017,7]
[405893877,1771402242506,-500.0,0.00017,7]
[405893878,1771402242516,-500.0,0.00017,7]
[405893879,1771402242525,-500.0,0.00017,7]
[405893880,1771402242534,-500.0,0.00017,7]
[405893881,1771402242544,-500.0,0.00017,7]
[405893882,1771402242553,-500.0,0.00017,7]
[405893883,1771402242563,-500.0,0.00017,7]
[405893884,1771402242572,-500.0,0.00017,7]
[405893885,1771402242581,-500.0,0.00017,7]
[405893886,1771402242591,-500.0,0.00017,7]
[405893887,1771402242600,-500.0,0.00017,7]
[405893888,1771402242609,-500.0,0.00017,7]
[405893889,1771402242618,-500.0,0.00017,7]
[405893890,1771402242627,-500.0,0.00017,7]
[405893891,1771402242636,-500.0,0.00017,7]
[405893892,1771402242646,-500.0,0.00017,7]
[405893893,1771402242655,-500.0,0.00017,7]
[405893894,1771402242664,-500.0,0.00017,7]
[405893895,1771402242674,-500.0,0.00017,7]
[405893896,1771402242683,-500.0,0.00017,7]
[405893897,1771402242692,-500.0,0.00017,7]
[405893898,1771402242702,-500.0,0.00017,7]
[405893899,1771402242711,-500.0,0.00017,7]
[405893900,1771402242721,-500.0,0.00017,7]
[405893901,1771402242731,-517.94,0.00017,7]
[405893902,1771402242740,-500.0,0.00017,7]
[405893903,1771402242749,-500.0,0.00017,7]
[405893904,1771402242759,-500.0,0.00017,7]
[405893905,1771402242768,-500.0,0.00017,7]
[405893906,1771402242778,-500.0,0.00017,7]
[405893907,1771402242787,-500.0,0.00017,7]
[405893908,1771402242796,-500.0,0.00017,7]
[405893909,1771402242805,-500.0,0.00017,7]
[405893910,1771402242814,-500.0,0.00017,7]
[405893911,1771402242823,-500.0,0.00017,7]
[405893912,1771402242832,-536.15,0.00017,7]
[405893913,1771402242841,-942.84413076,0.00017009,2]
[405893914,1771402242851,-2667.49584406,0.00017108,2]
[405893915,1771402242860,-500.0,0.0001726,2]
[405893917,1771402242869,-726.33,0.0001726,2]
[405893919,1771402242878,-1764.9,0.0001726,2]
[405893920,1771402242892,-500.0,0.0001726,2]
[405893921,1771402242901,-538.14,0.0001726,2]
[405893922,1771402242910,-254.47236709,0.0001726,2]
[405893923,1771402242919,-500.0,0.0001726,2]
[405893924,1771402242929,-1549.77,0.0001726,2]
[405893925,1771402242938,-362.29913264,0.0001726,2]
[405893926,1771402242948,-500.0,0.0001726,2]
[405893927,1771402242959,-571.12,0.0001726,2]
[405893928,1771402242968,-1320.96,0.0001726,2]
[405893929,1771402242978,-500.0,0.0001726,2]
[405893930,1771402242987,-848.46,0.0001726,2]
[405893931,1771402242996,-3265.42,0.0001726,2]
[405893932,1771402243005,-500.0,0.0001726,2]
[405893933,1771402243014,-1269.91,0.0001726,2]
[405893934,1771402243023,-500.0,0.0001726,2]
[405893935,1771402243032,-307.68274715,0.0001726,2]
[405893936,1771402243042,-1097.86,0.0001726,2]
[405893937,1771402243051,-1766.05,0.0001726,2]
[405893938,1771402243061,-500.0,0.0001726,2]
[405893939,1771402243070,-549.73,0.0001726,2]
[405893940,1771402243079,-500.0,0.0001726,2]
[405893941,1771402243088,-10313.6,0.0001726,2]
[405893942,1771402243097,-613.46,0.0001726,2]
[405893943,1771402243107,-11753.75393131,0.00017273,2]
[405893944,1771402243199,-7559.80738037,0.00017273,2]
[405893960,1771402244556,-500.0,0.00016274,2]
[405893961,1771402244567,-18.9172982,0.00016438,2]
[405893968,1771402246209,-481.0827018,0.00016438,2]
[405893969,1771402246220,-500.0,0.00016712,2]
[405893970,1771402246230,-500.0,0.00016986,2]
[405893971,1771402246240,-500.0,0.0001726,2]
[405893972,1771402246252,-1370.90041684,0.00017273,2]
[405893973,1771402246262,-303.69682518,0.00017273,2]
[405893974,1771402247756,-3810.7164528,0.00017273,2]
[405893975,1771402247766,-3270.743308,0.00017273,2]
[405893976,1771402247776,-13977.54953687,0.00017323,2]
[405893977,1771402247785,-500.0,0.00017326,2]
[405893978,1771402247795,-500.0,0.00017343,2]
[405893979,1771402247805,-151.0,0.000174,2]
[405893980,1771402247815,-2173.0,0.00017476,2]
[405893981,1771402247824,-725.0,0.00017476,2]
[405893982,1771402247834,-181.0,0.00017476,2]
[405893983,1771402247844,-426.0,0.00017476,2]
[405893984,1771402247854,-40105.41556492,0.00017499,2]
[405893985,1771402247863,-285.0,0.00017509,2]
[405893986,1771402247873,-743.5267485,0.00017524,2]
[405893987,1771402247884,-726.33,0.00017534,2]
[405893988,1771402247897,-1764.9,0.00017534,2]
[405893989,1771402247906,-500.0,0.00017534,2]
[405893990,1771402247917,-538.14,0.00017534,2]
[405893991,1771402247927,-500.0,0.00017534,2]
[405893992,1771402247938,-1549.77,0.00017534,2]
[405893993,1771402247947,-178.8,0.00017534,2]
[405893994,1771402247958,-571.12,0.00017534,2]
[405893995,1771402247967,-1320.96,0.00017534,2]
[405893996,1771402247977,-500.0,0.00017534,2]
[405893997,1771402247987,-848.46,0.00017534,2]
[405893998,1771402247996,-3265.42,0.00017534,2]
[405893999,1771402248007,-500.0,0.00017534,2]
[405894000,1771402248016,-1269.91,0.00017534,2]
[405894001,1771402248027,-500.0,0.00017534,2]
[405894002,1771402248036,-1097.86,0.00017534,2]
[405894003,1771402248046,-1766.05,0.00017534,2]
[405894004,1771402248055,-500.0,0.00017534,2]
[405894005,1771402248064,-549.73,0.00017534,2]
[405894006,1771402248073,-500.0,0.00017534,2]
[405894007,1771402248083,-10313.6,0.00017534,2]
[405894008,1771402248092,-613.46,0.00017534,2]
[405894009,1771402248102,-500.0,0.00017534,2]
[405894010,1771402248112,-168.0,0.00017546,2]
[405894011,1771402248121,-500.0,0.00017577,2]
[405894012,1771402248130,-500.0,0.00017584,2]
[405894013,1771402248140,-503.63953762,0.00017594,2]
[405894014,1771402248149,-2148.24369044,0.000176,2]
[405894015,1771402248160,-151.0,0.000176,2]
[405894016,1771402248172,-151.0,0.000176,2]
[405894017,1771402248182,-151.0,0.000176,2]
[405894018,1771402248192,-773.3766029,0.0001764,2]
[405894019,1771402248202,-500.0,0.00017655,2]
[405894020,1771402248212,-500.0,0.00017658,2]
[405894021,1771402248222,-1228.49839885,0.00017665,2]
[405894022,1771402248232,-2114.0,0.00017673,2]
[405894023,1771402248241,-634.08,0.00017701,2]
[405894024,1771402248251,-1676.16734357,0.00017713,2]
[405894025,1771402248260,-168.0,0.0001773,2]
[405894026,1771402248269,-478.06,0.00017786,3]
[405894027,1771402248278,-956.14,0.00017798,3]
[405894028,1771402248287,-151.0,0.000178,2]
[405894029,1771402248297,-151.0,0.000178,2]
[405894030,1771402248306,-151.0,0.000178,2]
[405894031,1771402248316,-726.33,0.00017808,2]
[405894032,1771402248324,-1764.9,0.00017808,2]
[405894033,1771402248333,-500.0,0.00017808,2]
[405894034,1771402248343,-538.14,0.00017808,2]
[405894035,1771402248352,-500.0,0.00017808,2]
[405894036,1771402248361,-1549.77,0.00017808,2]
[405894037,1771402248370,-571.12,0.00017808,2]
[405894038,1771402248379,-1320.96,0.00017808,2]
[405894039,1771402248388,-500.0,0.00017808,2]
[405894040,1771402248397,-848.46,0.00017808,2]
[405894041,1771402248406,-3265.42,0.00017808,2]
[405894042,1771402248416,-500.0,0.00017808,2]
[405894043,1771402248425,-1269.91,0.00017808,2]
[405894044,1771402248434,-500.0,0.00017808,2]
[405894045,1771402248443,-1097.86,0.00017808,2]
[405894046,1771402248454,-1766.05,0.00017808,2]
[405894047,1771402248463,-500.0,0.00017808,2]
[405894048,1771402248472,-549.73,0.00017808,2]
[405894049,1771402248481,-500.0,0.00017808,2]
[405894050,1771402248491,-10313.6,0.00017808,2]
[405894051,1771402248501,-613.46,0.00017808,2]
[405894052,1771402248510,-500.0,0.00017808,2]
[405894053,1771402248519,-151.0381072,0.00017808,2]
[405894054,1771402248528,-150.8643577,0.00017808,2]
[405894055,1771402248542,-381.89304566,0.00017812,2]
[405894056,1771402248551,-436.44919504,0.00017812,2]
[405894057,1771402248561,-194.07119412,0.00017812,2]
[405894058,1771402248571,-24563.31806495,0.0001782,2]
[405894059,1771402248580,-168.0,0.00017843,2]
[405894060,1771402248589,-168.0,0.00017862,2]
[405894061,1771402248599,-500.0,0.00017864,2]
[405894062,1771402248608,-500.0,0.00017954,2]
[405894063,1771402248619,-328.90721518,0.00017981,2]
[405894064,1771402248628,-348.97882128,0.00017984,2]